bitfinex/quotes_SOLUSD_20260217
["timestamp","ask_amount","ask_price","bid_price","bid_amount"]
[1771290225020,3.82068849,86.806,86.773,1.80058365]
[1771290225214,3.82068849,86.799,86.772,11.52445489]
[1771290226433,3.82068849,86.799,86.767,11.52504402]
[1771290227034,30.10007372,86.805,86.751,1.79475162]
[1771290227035,3.82068849,86.789,86.751,1.79475162]
[1771290227235,3.82068849,86.799,86.761,1.79475162]
[1771290227624,15.34155854,86.799,86.761,1.79475162]
[1771290227826,3.82068849,86.798,86.761,1.79475162]
[1771290229041,11.52113552,86.797,86.762,11.52578317]
[1771290229337,3.52865297,86.796,86.763,1.78625239]
[1771290231229,3.52865297,86.796,86.765,1.78074769]
[1771290233050,3.52865297,86.789,86.75,3.24729806]
[1771290233347,18.56,86.805,86.698,117.59208491]
[1771290233348,3.52865297,86.769,86.742,1.77536871]
[1771290233842,3.52865297,86.769,86.741,11.52857356]
[1771290234349,3.52865297,86.769,86.737,1.7701126]
[1771290234644,3.24729806,86.78,86.741,1.7701126]
[1771290234836,3.52865297,86.779,86.741,1.7701126]
[1771290235348,3.52865297,86.769,86.741,1.7701126]
[1771290235545,3.52865297,86.759,86.736,40.3523335]
[1771290235754,3.52865297,86.759,86.736,11.52923814]
[1771290235941,3.52865297,86.779,86.737,1.76752973]
[1771290236248,3.52865297,86.769,86.736,40.3523335]
[1771290236545,11.52302708,86.783,86.736,40.3523335]
[1771290236546,3.52865297,86.759,86.736,11.52923814]
[1771290237044,3.24729806,86.75,86.736,11.52923814]
[1771290237228,3.52865297,86.75,86.736,11.52923814]
[1771290237631,3.52865297,86.749,86.721,11.53123234]
[1771290238027,3.52865297,86.743,86.721,11.53123234]
[1771290238231,3.52865297,86.743,86.721,13.293685]
[1771290240046,3.52865297,86.75,86.722,1.75749154]
[1771290240753,6.77595103,86.75,86.722,1.75749154]
[1771290241046,3.52865297,86.749,86.722,1.75749154]
[1771290241255,3.52865297,86.749,86.721,40.35931319]
[1771290241436,3.52865297,86.749,86.722,1.75264374]
[1771290242354,3.24729806,86.76,86.722,1.75264374]
[1771290242558,0.60121612,108.29,86.751,1.75026152]
[1771290242559,3.52865297,86.796,86.751,1.75026152]
[1771290242846,3.52865297,86.796,86.75,3.24729806]
[1771290242847,3.52865297,86.819,86.781,1.75026152]
[1771290243053,3.52865297,86.809,86.781,1.75026152]
[1771290243231,3.52865297,86.809,86.75,3.24729806]
[1771290243232,3.52865297,86.809,86.771,1.75026152]
[1771290243432,3.52865297,86.799,86.771,1.75026152]
[1771290244459,3.52865297,86.799,86.773,1.74557885]
[1771290246156,3.52865297,86.808,86.781,1.74327778]
[1771290246766,3.52865297,86.831,86.801,1.74100314]
[1771290247145,3.52865297,86.829,86.801,1.74100314]
[1771290248062,3.52865297,86.829,86.79,3.24729806]
[1771290248772,4.61729252,86.886,86.811,3.57871512]
[1771290249069,3.24729806,86.85,86.811,3.57871512]
[1771290249566,3.24729806,86.87,86.831,3.57871512]
[1771290250065,3.24729806,86.85,86.811,3.57871512]
[1771290250243,3.24729806,86.83,86.801,3.57871512]
[1771290250763,3.52865297,86.829,86.802,11.52047187]
[1771290253965,3.73957819,86.809,86.78,11.52339248]
[1771290254847,3.73957819,86.809,86.78,15.23407559]
[1771290255051,3.73957819,86.809,86.78,18.48369668]
[1771290255557,3.73957819,86.827,86.791,3.71068311]
[1771290255869,3.24962109,86.83,86.791,3.71068311]
[1771290255870,3.73957819,86.826,86.791,3.71068311]
[1771290257260,3.73957819,86.819,86.792,11.52179924]
[1771290259974,3.73957819,86.809,86.784,11.52275739]
[1771290260871,3.73957819,86.809,86.756,15.28]
[1771290260872,3.73957819,86.809,86.779,11.52343777]
[1771290261173,3.73957819,86.799,86.769,28.81180994]
[1771290262467,3.73957819,86.799,86.773,11.52425846]
[1771290262668,3.73957819,86.799,86.769,28.81180994]
[1771290263947,3.73957819,86.799,86.764,3.71068311]
[1771290264154,3.73957819,86.779,86.753,11.52697889]
[1771290264673,3.73957819,86.779,86.754,3.71068311]
[1771290265554,3.73957819,86.779,86.756,3.71068311]
[1771290267776,8.12695561,86.8,86.761,3.71068311]
[1771290267973,11.52087005,86.799,86.761,3.71068311]
[1771290268159,8.12695561,86.79,86.761,3.71068311]
[1771290269572,8.12695561,86.79,86.757,40.34256601]
[1771290269573,8.12695561,86.81,86.771,3.71068311]
[1771290269758,3.73957819,86.809,86.773,3.71068311]
[1771290272861,11.5196756,86.808,86.775,3.71068311]
[1771290273072,3.73957819,86.799,86.774,9.91398318]
[1771290273280,3.73957819,86.789,86.763,11.52565033]
[1771290273778,3.73957819,86.789,86.764,3.71068311]
[1771290275264,3.73957819,86.789,86.765,11.52538465]
[1771290275474,3.73957819,86.789,86.766,3.71068311]
[1771290275971,3.73957819,86.789,86.765,11.52538465]
[1771290276688,3.73957819,86.789,86.76,11.52604887]
[1771290277180,11.52228269,86.789,86.753,11.52697889]
[1771290277477,3.73957819,86.788,86.754,3.71068311]
[1771290278276,3.73957819,86.788,86.753,11.52697889]
[1771290278465,3.73957819,86.779,86.753,11.52697889]
[1771290279384,3.73957819,86.779,86.748,3.71068311]
[1771290280681,3.73957819,86.779,86.751,3.71068311]
[1771290281779,3.73957819,86.779,86.752,15.23779487]
[1771290283083,3.73957819,86.779,86.753,3.71068311]
[1771290283666,3.73957819,86.779,86.752,11.52711176]
[1771290283866,3.73957819,86.779,86.748,3.71068311]
[1771290286089,3.73957819,86.779,86.75,6.74957104]
[1771290286789,3.73957819,86.779,86.751,3.49753214]
[1771290287671,3.73957819,86.779,86.749,11.5275104]
[1771290287874,3.497944,86.769,86.745,11.52803115]
[1771290288293,3.497944,86.769,86.74,11.52870647]
[1771290289389,3.53984724,86.767,86.739,3.49753214]
[1771290290088,3.53984724,86.767,86.74,11.52870647]
[1771290290266,3.53984724,86.767,86.74,15.16058203]
[1771290291185,3.53984724,86.765,86.74,15.16058203]
[1771290291886,3.53984724,86.765,86.74,3.63187556]
[1771290292280,3.53984724,86.765,86.721,15.38]
[1771290292281,3.53984724,86.765,86.72,3.4520389]
[1771290292282,3.53984724,86.748,86.7,3.83187556]
[1771290292471,3.53984724,86.729,86.7,3.83187556]
[1771290292667,18.46,86.728,86.701,3.63187556]
[1771290293391,18.46,86.733,86.702,3.63187556]
[1771290293586,3.53984724,86.748,86.711,3.63187556]
[1771290293770,3.2520389,86.75,86.711,3.63187556]
[1771290293771,3.53984724,86.746,86.711,3.63187556]
[1771290293969,4.61729252,86.773,86.701,40.36862319]
[1771290293970,3.53984724,86.759,86.731,3.63187556]
[1771290294189,3.53984724,86.766,86.731,3.63187556]
[1771290294492,3.53984724,86.766,86.741,3.63187556]
[1771290294693,28.80670973,86.786,86.732,11.52976986]
[1771290294694,3.53984724,86.774,86.751,3.63187556]
[1771290294987,3.53984724,86.774,86.732,40.35419452]
[1771290294988,3.2520389,86.77,86.741,3.63187556]
[1771290295191,3.53984724,86.769,86.741,3.63187556]
[1771290296694,3.53984724,86.769,86.743,3.63187556]
[1771290299581,3.53984724,86.769,86.75,3.2520389]
[1771290299995,3.53984724,86.769,86.75,8.12955773]
[1771290300670,28.80289243,86.797,86.747,11.52775595]
[1771290300671,3.53984724,86.788,86.761,3.63187556]
[1771290300899,3.53984724,86.786,86.761,3.63187556]
[1771290301779,3.53984724,86.796,86.763,3.63187556]
[1771290301979,3.53984724,86.796,86.771,3.63187556]
[1771290302693,3.53984724,86.795,86.771,3.63187556]
[1771290304893,3.53984724,86.795,86.765,3.63187556]
[1771290305303,3.53984724,86.779,86.754,11.52671348]
[1771290305514,3.53984724,86.777,86.75,19.65691858]
[1771290305700,3.53984724,86.777,86.75,11.52736085]
[1771290306003,3.53984724,86.777,86.744,11.5280445]
[1771290306305,3.53984724,86.775,86.744,11.5280445]
[1771290306505,18.44,86.774,86.744,11.5280445]
[1771290306710,3.53984724,86.773,86.744,11.5280445]
[1771290306918,3.53984724,86.771,86.744,11.5280445]
[1771290307607,3.53984724,86.769,86.743,3.63187556]
[1771290307812,3.53984724,86.769,86.74,8.12955773]
[1771290307813,3.53984724,86.767,86.741,3.63187556]
[1771290307984,3.53984724,86.767,86.737,11.52908381]
[1771290308708,3.53984724,86.767,86.738,3.63187556]
[1771290309206,3.53984724,86.765,86.738,3.63187556]
[1771290309511,3.53984724,86.765,86.741,3.63187556]
[1771290310290,18.46,86.764,86.741,3.63187556]
[1771290310485,8.12955773,86.78,86.739,11.52883939]
[1771290310486,3.53984724,86.78,86.751,3.63187556]
[1771290310685,18.46,86.779,86.751,3.63187556]
[1771290311293,18.46,86.779,86.753,3.63187556]
[1771290312809,21.99984724,86.779,86.753,3.63187556]
[1771290313025,18.46,86.779,86.753,3.63187556]
[1771290313696,18.46,86.779,86.754,11.52684602]
[1771290314004,21.99984724,86.779,86.755,3.63187556]
[1771290315598,21.99984724,86.779,86.757,3.59738334]
[1771290316205,3.76404452,86.778,86.757,3.59738334]
[1771290318095,3.76404452,86.778,86.758,11.52631457]
[1771290318692,3.76404452,86.778,86.758,15.12369791]
[1771290319817,3.76404452,86.778,86.759,3.59738334]
[1771290323216,22.20404452,86.784,86.759,3.59738334]
[1771290323418,3.76404452,86.783,86.759,3.59738334]
[1771290325226,3.25150915,86.78,86.753,3.59738334]
[1771290325431,3.76404452,86.779,86.753,3.59738334]
[1771290327311,3.76404452,86.779,86.755,3.59738334]
[1771290328214,3.76404452,86.759,86.717,3.59738334]
[1771290328414,3.76404452,86.757,86.717,3.59738334]
[1771290328607,18.44,86.756,86.721,3.59738334]
[1771290328804,3.76404452,86.755,86.721,3.59738334]
[1771290329202,3.76404452,86.749,86.721,3.59738334]
[1771290329402,58.93963928,86.778,86.723,3.59738334]
[1771290329403,3.76404452,86.756,86.723,3.59738334]
[1771290329608,3.76404452,86.755,86.723,3.59738334]
[1771290330828,3.25150915,86.75,86.723,3.59738334]
[1771290331131,3.76404452,86.749,86.723,3.59738334]
[1771290331326,3.76404452,86.749,86.724,11.53083344]
[1771290331706,3.76404452,86.729,86.7,0.2]
[1771290332012,3.76404452,86.727,86.701,11.53389234]
[1771290332414,3.76404452,86.727,86.701,15.13127568]
[1771290332608,3.76404452,86.727,86.702,3.59738334]
[1771290334111,3.25150915,86.72,86.703,11.53362628]
[1771290334303,3.76404452,86.719,86.7,0.2]
[1771290334720,3.76404452,86.719,86.701,11.53389234]
[1771290337835,3.25150915,86.72,86.702,3.59738334]
[1771290338044,3.76404452,86.737,86.702,3.59738334]
[1771290338339,28.81578021,86.759,86.711,3.59738334]
[1771290338340,3.76404452,86.745,86.711,3.59738334]
[1771290338631,18.42,86.744,86.711,3.59738334]
[1771290339119,3.76404452,86.745,86.711,3.59738334]
[1771290340337,3.76404452,86.739,86.708,11.53284556]
[1771290340719,3.76404452,86.739,86.709,3.59738334]
[1771290341337,3.76404452,86.719,86.7,0.2]
[1771290341539,3.76404452,86.719,86.701,11.53389234]
[1771290342826,22.18404452,86.725,86.702,3.59738334]
[1771290343039,3.76404452,86.742,86.711,3.59738334]
[1771290343228,3.76404452,86.746,86.711,3.59738334]
[1771290346120,18.42,86.748,86.721,3.59820618]
[1771290347221,18.42,86.748,86.723,3.59820618]
[1771290349347,3.46660802,86.747,86.724,11.53083344]
[1771290349551,3.46660802,86.747,86.724,14.92947982]
[1771290349839,3.46660802,86.747,86.724,11.53083344]
[1771290352544,3.46660802,86.762,86.731,3.39864638]
[1771290352742,3.46660802,86.77,86.741,3.39864638]
[1771290353077,18.44,86.771,86.751,3.39864638]
[1771290353229,3.46660802,86.777,86.751,3.39864638]
[1771290353537,18.44,86.775,86.751,3.39864638]
[1771290354643,3.46660802,86.782,86.753,3.39864638]
[1771290355847,3.46660802,86.781,86.753,3.39864638]
[1771290356936,3.46660802,86.781,86.755,3.39864638]
[1771290358526,3.46660802,86.779,86.754,11.52684602]
[1771290358937,28.8015242,86.801,86.74,3.25150915]
[1771290358938,3.46660802,86.777,86.742,3.39864638]
[1771290359144,3.46660802,86.775,86.743,11.52820395]
[1771290359329,3.46660802,86.775,86.744,3.39864638]
[1771290359743,18.44,86.776,86.744,3.39864638]
[1771290359940,3.46660802,86.775,86.743,11.52820395]
[1771290360142,3.46660802,86.775,86.744,3.39864638]
[1771290361050,3.46660802,86.775,86.745,11.52804196]
[1771290361250,18.44,86.779,86.746,3.39864638]
[1771290361446,18.44,86.781,86.751,3.39864638]
[1771290361651,3.46660802,86.78,86.751,3.39864638]
[1771290361841,6.71811717,86.78,86.751,3.39864638]
[1771290362042,3.46660802,86.779,86.745,11.52804196]
[1771290362834,3.46660802,86.779,86.746,3.39864638]
[1771290363436,3.46660802,86.777,86.746,3.39864638]
[1771290363756,3.46660802,86.769,86.731,11.5299028]
[1771290363953,3.46660802,86.769,86.731,14.92854918]
[1771290364453,3.46660802,86.769,86.732,3.39864638]
[1771290365563,3.46660802,86.759,86.733,11.52963693]
[1771290365854,3.46660802,86.758,86.733,11.52963693]
[1771290366655,3.46660802,86.758,86.729,11.53011443]
[1771290367441,3.46660802,86.749,86.718,11.53163126]
[1771290367758,3.25150915,86.75,86.718,11.53163126]
[1771290367759,3.46660802,86.747,86.718,11.53163126]
[1771290367940,3.46660802,86.747,86.718,14.93027764]
[1771290369656,3.46660802,86.747,86.719,3.39864638]
[1771290370554,18.44,86.748,86.721,3.39864638]
[1771290370752,3.46660802,86.756,86.721,3.39864638]
[1771290371333,3.46660802,86.754,86.721,3.39864638]
[1771290371836,3.46660802,86.754,86.722,11.53109937]
[1771290372040,3.46660802,86.754,86.723,3.39864638]
[1771290374038,3.46660802,86.754,86.725,3.54894309]
[1771290374857,3.39946292,86.749,86.725,3.54894309]
[1771290376237,3.39946292,86.747,86.719,11.53146065]
[1771290376440,11.52764328,86.748,86.705,44.23333518]
[1771290376441,3.39946292,86.739,86.71,3.54894309]
[1771290376859,3.39946292,86.737,86.71,3.54894309]
[1771290378163,3.39946292,86.729,86.71,3.54894309]
[1771290378344,3.39946292,86.729,86.704,3.54894309]
[1771290379169,3.39946292,86.728,86.704,3.54894309]
[1771290379349,3.39946292,86.729,86.702,3.54894309]
[1771290380664,3.39946292,86.728,86.702,3.54894309]
[1771290381170,3.39946292,86.728,86.704,3.54894309]
[1771290381545,3.39946292,86.726,86.7,0.2]
[1771290381750,3.39946292,86.719,86.7,0.2]
[1771290382166,3.39946292,86.719,86.7,11.73395209]
[1771290383471,3.39946292,86.719,86.7,0.2]
[1771290384753,18.44,86.727,86.7,0.2]
[1771290384754,3.39946292,86.717,86.7,0.2]
[1771290385266,3.39946292,86.715,86.7,0.2]
[1771290385464,3.39946292,86.715,86.69,0.2]
[1771290385868,3.25550302,86.71,86.69,0.2]
[1771290386065,3.39946292,86.709,86.69,0.2]
[1771290386966,3.39946292,86.709,86.691,11.5352228]
[1771290387374,3.39946292,86.709,86.69,0.2]
[1771290388854,3.39946292,86.709,86.69,11.73525294]
[1771290389570,3.39946292,86.709,86.69,0.2]
[1771290389965,3.39946292,86.707,86.69,0.2]
[1771290390168,3.39946292,86.709,86.69,0.2]
[1771290390360,3.39946292,86.707,86.69,0.2]
[1771290390968,18.46,86.706,86.69,3.74894309]
[1771290391568,11.53280387,86.71,86.69,0.2]
[1771290391569,3.39946292,86.705,86.69,0.2]
[1771290393466,21.87946292,86.704,86.69,0.2]
[1771290393675,3.39946292,86.703,86.69,0.2]
[1771290394184,3.39946292,86.703,86.672,28.84428685]
[1771290394185,3.39946292,86.699,86.671,3.54894309]
[1771290394365,3.39946292,86.697,86.671,3.54894309]
[1771290394565,3.39946292,86.697,86.672,3.54894309]
[1771290395577,18.48,86.696,86.672,3.54894309]
[1771290395881,18.48,86.696,86.674,3.54894309]
[1771290397887,3.39946292,86.695,86.674,3.54894309]
[1771290398184,3.39946292,86.695,86.676,3.54894309]
[1771290399478,3.39946292,86.689,86.646,3.54894309]
[1771290399666,3.39946292,86.689,86.6,0.2]
[1771290399667,3.39946292,86.659,86.634,3.54894309]
[1771290399868,6.65496594,86.65,86.631,11.54312071]
[1771290400066,3.25550302,86.65,86.632,3.54894309]
[1771290401281,3.39946292,86.649,86.626,11.54378046]
[1771290401488,3.39946292,86.639,86.61,3.74894309]
[1771290401669,2.65550302,86.64,86.631,3.54894309]
[1771290401863,18.5,86.647,86.631,3.54894309]
[1771290402187,18.5,86.667,86.632,3.54894309]
[1771290402483,18.5,86.667,86.631,11.54321201]
[1771290402484,3.39946292,86.677,86.641,3.54894309]
[1771290402889,21.89946292,86.676,86.643,3.54894309]
[1771290403094,3.39946292,86.676,86.643,3.54894309]
[1771290403978,18.48,86.677,86.643,3.54894309]
[1771290404284,28.83591496,86.698,86.642,11.54174649]
[1771290404285,3.25550302,86.69,86.651,3.67925194]
[1771290405081,3.45601721,86.691,86.653,3.67925194]
[1771290405280,3.25550302,86.7,86.661,3.67925194]
[1771290405281,3.45601721,86.699,86.661,3.67925194]
[1771290405487,3.45601721,86.696,86.661,3.67925194]
[1771290405874,3.45601721,86.689,86.661,3.67925194]
[1771290406080,3.45601721,86.687,86.661,3.67925194]
[1771290406277,3.45601721,86.679,86.653,3.67925194]
[1771290406684,3.45601721,86.686,86.653,3.67925194]
[1771290406876,18.48,86.68,86.653,3.67925194]
[1771290407201,18.48,86.68,86.655,3.67925194]
[1771290407794,11.53520771,86.692,86.655,3.67925194]
[1771290407992,30.01520771,86.692,86.655,3.67925194]
[1771290409371,18.48,86.692,86.661,3.69101294]
[1771290409570,3.67671025,86.689,86.661,3.69101294]
[1771290410298,3.67671025,86.679,86.655,9.84134603]
[1771290410898,3.67671025,86.679,86.656,3.69101294]
[1771290411280,18.48,86.683,86.656,3.69101294]
[1771290411480,18.48,86.683,86.658,3.69101294]
[1771290411481,22.15671025,86.683,86.658,3.69101294]
[1771290411975,3.67671025,86.682,86.658,3.69101294]
[1771290412406,28.83473298,86.701,86.661,3.69101294]
[1771290412407,3.67671025,86.691,86.661,3.69101294]
[1771290412585,18.5,86.691,86.661,3.69101294]
[1771290413703,33.71198507,86.691,86.663,3.69101294]
[1771290413905,22.17671025,86.691,86.663,3.69101294]
[1771290414590,3.67671025,86.698,86.663,3.69101294]
[1771290414902,18.48,86.697,86.663,3.69101294]
[1771290415894,18.48,86.697,86.665,3.69101294]
[1771290416203,22.17671025,86.706,86.671,3.69101294]
[1771290416788,3.67671025,86.705,86.671,3.69101294]
[1771290417213,3.67671025,86.705,86.673,3.69101294]
[1771290417907,3.25550302,86.7,86.673,3.69101294]
[1771290418213,3.67671025,86.689,86.667,3.69101294]
[1771290418595,3.67671025,86.689,86.665,11.53864677]
[1771290419030,3.67671025,86.689,86.66,3.69101294]
[1771290419716,3.67671025,86.687,86.66,3.69101294]
[1771290420299,3.67671025,86.687,86.662,3.69101294]
[1771290420817,3.67671025,86.687,86.656,11.53984977]
[1771290421108,3.67671025,86.687,86.657,3.69101294]
[1771290422419,3.67671025,86.687,86.659,3.69101294]
[1771290423816,3.67671025,86.686,86.659,3.69101294]
[1771290424315,3.67671025,86.686,86.66,11.53934918]
[1771290424611,3.67671025,86.686,86.661,3.69101294]
[1771290426718,3.67671025,86.685,86.661,3.69101294]
[1771290427597,3.67671025,86.685,86.652,3.69101294]
[1771290427809,3.67671025,86.685,86.612,103.1]
[1771290427810,3.67671025,86.669,86.632,3.69101294]
[1771290427993,3.67671025,86.667,86.632,3.69101294]
[1771290428195,3.67671025,86.675,86.641,3.69101294]
[1771290428514,18.5,86.668,86.641,3.69101294]
[1771290429414,18.5,86.668,86.651,3.69101294]
[1771290429594,18.5,86.686,86.66,3.25550302]
[1771290429798,3.70384375,86.685,86.66,3.25550302]
[1771290430123,3.70384375,86.689,86.66,3.25550302]
[1771290430322,3.70384375,86.689,86.67,3.25550302]
[1771290430618,18.5,86.69,86.66,3.25550302]
[1771290432122,18.5,86.69,86.661,11.53921602]
[1771290432429,18.5,86.69,86.661,40.38725608]
[1771290432607,18.5,86.69,86.661,11.53921602]
[1771290433723,3.70384375,86.696,86.661,40.38725608]
[1771290433917,3.70384375,86.696,86.67,3.25550302]
[1771290434233,3.70384375,86.696,86.671,11.53788464]
[1771290435236,3.70384375,86.696,86.66,3.25550302]
[1771290437329,3.70384375,86.696,86.645,57.7061684]
[1771290437638,3.70384375,86.696,86.66,3.25550302]
[1771290438160,18.5,86.71,86.67,3.2581482]
[1771290438161,3.70384375,86.708,86.67,3.2581482]
[1771290438303,6.51365122,86.75,86.69,3.2581482]
[1771290438304,3.70384375,86.714,86.69,3.2581482]
[1771290438708,3.70384375,86.714,86.7,3.2581482]
[1771290439235,3.70384375,86.714,86.69,3.2581482]
[1771290439453,3.70384375,86.713,86.69,3.2581482]
[1771290440546,3.70384375,86.713,86.691,11.5352228]
[1771290441137,3.70384375,86.713,86.692,0.02807642]
[1771290441338,3.70384375,86.726,86.701,11.53389234]
[1771290441535,3.70384375,86.726,86.7,3.2581482]
[1771290441732,3.70384375,86.724,86.693,11.53495331]
[1771290443747,3.70384375,86.722,86.693,11.53495331]
[1771290444329,18.46,86.745,86.693,11.53495331]
[1771290444330,46.04332021,86.875,86.711,5.50302345]
[1771290444653,0.1,86.89,86.8,3.2581482]
[1771290444654,24.23688951,86.829,86.8,3.2581482]
[1771290444856,24.23688951,86.829,86.758,6.02400423]
[1771290444857,18.46,86.828,86.79,3.2581482]
[1771290445228,11.51688951,86.829,86.8,3.2581482]
[1771290445435,18.46,86.827,86.8,3.2581482]
[1771290446334,3.72577633,86.826,86.8,3.2581482]
[1771290448452,3.72577633,86.824,86.8,3.2581482]
[1771290448949,3.72577633,86.824,86.788,0.02021973]
[1771290448950,3.72577633,86.809,86.762,28.81436463]
[1771290449154,3.72577633,86.799,86.761,11.52591602]
[1771290449448,3.72577633,86.797,86.761,11.52591602]
[1771290449752,11.52100278,86.798,86.74,3.2581482]
[1771290449753,3.72577633,86.779,86.74,3.2581482]
[1771290449930,3.72577633,86.769,86.74,3.2581482]
[1771290450322,3.72577633,86.769,86.709,4.61729252]
[1771290450323,18.44,86.768,86.75,3.2581482]
[1771290451337,18.42,86.768,86.75,3.2581482]
[1771290451856,3.72577633,86.799,86.76,3.2581482]
[1771290452035,18.42,86.778,86.76,8.12740476]
[1771290453746,18.42,86.778,86.76,19.65345177]
[1771290454643,18.42,86.779,86.76,8.12740476]
[1771290455452,22.14577633,86.779,86.76,8.12740476]
[1771290456243,3.72577633,86.778,86.76,8.12740476]
[1771290456945,3.72577633,86.778,86.754,11.52673991]
[1771290457143,3.72577633,86.778,86.75,8.12740476]
[1771290457477,3.72577633,86.778,86.751,11.52724464]
[1771290459247,3.72577633,86.778,86.74,8.12740476]
[1771290459452,3.72577633,86.769,86.73,19.6574405]
[1771290459642,3.72577633,86.769,86.74,8.12740476]
[1771290459845,18.44,86.768,86.74,8.12740476]
[1771290460239,22.16577633,86.768,86.74,8.12740476]
[1771290460444,18.42,86.767,86.74,8.12740476]
[1771290460645,3.72577633,86.768,86.741,11.52857356]
[1771290460959,18.42,86.767,86.741,11.52857356]
[1771290461158,22.14577633,86.767,86.741,11.52857356]
[1771290461457,22.14577633,86.767,86.703,46.13412586]
[1771290461458,3.72577633,86.766,86.64,6.49950678]
[1771290461635,3.72577633,86.759,86.73,8.12740476]
[1771290461958,3.72577633,86.757,86.73,8.12740476]
[1771290462157,3.72577633,86.757,86.72,8.12740476]
[1771290462473,3.72577633,86.755,86.73,8.12740476]
[1771290463950,3.72577633,86.755,86.731,11.5299028]
[1771290466167,28.80950418,86.777,86.731,11.5299028]
[1771290466168,3.72577633,86.774,86.74,8.12740476]
[1771290466470,17.26,86.775,86.75,8.12740476]
[1771290466839,3.72577633,86.774,86.75,8.12740476]
[1771290467158,3.72577633,86.774,86.74,8.12740476]
[1771290467350,22.16577633,86.773,86.74,8.12740476]
[1771290467751,3.72577633,86.772,86.74,8.12740476]
[1771290467969,3.72577633,86.772,86.75,8.12740476]
[1771290468146,3.72577633,86.772,86.751,11.52724464]
[1771290468342,22.16577633,86.772,86.751,11.52724464]
[1771290468656,3.72577633,86.781,86.751,11.52724464]
[1771290468858,18.44,86.78,86.751,11.52724464]
[1771290469466,18.44,86.78,86.76,8.12740476]
[1771290469975,18.44,86.78,86.75,8.12740476]
[1771290470951,18.44,86.78,86.751,11.52724464]
[1771290471645,18.44,86.78,86.76,8.12740476]
[1771290472164,18.44,86.78,86.75,8.12740476]
[1771290472462,22.16577633,86.78,86.75,8.12740476]
[1771290472665,3.72577633,86.779,86.75,8.12740476]
[1771290473868,3.72577633,86.779,86.75,3.25129044]
[1771290476568,3.72577633,86.778,86.74,3.25129044]
[1771290477068,18.44,86.777,86.74,3.25129044]
[1771290477264,11.52352527,86.779,86.74,3.25129044]
[1771290477265,3.72577633,86.775,86.74,3.25129044]
[1771290477473,3.72577633,86.769,86.73,3.25129044]
[1771290478659,3.72577633,86.769,86.731,40.3546598]
[1771290478862,3.72577633,86.767,86.731,40.3546598]
[1771290479270,3.72577633,86.767,86.74,3.25129044]
[1771290479458,3.72577633,86.765,86.74,3.25129044]
[1771290479772,3.72577633,86.763,86.74,3.25129044]
[1771290480783,18.44,86.763,86.741,11.52857356]
[1771290480985,22.16577633,86.769,86.741,11.52857356]
[1771290481158,3.72577633,86.767,86.741,11.52857356]
[1771290482372,3.72577633,86.766,86.741,11.52857356]
[1771290484575,3.72577633,86.766,86.73,3.25129044]
[1771290484762,3.72577633,86.764,86.73,3.25129044]
[1771290485084,11.52538465,86.765,86.713,40.36303667]
[1771290485085,3.72577633,86.759,86.72,3.25129044]
[1771290485258,3.72577633,86.757,86.713,40.36303667]
[1771290485458,3.72577633,86.749,86.713,40.36303667]
[1771290486777,3.72577633,86.747,86.713,11.53229619]
[1771290488264,18.44,86.746,86.713,11.53229619]
[1771290488457,3.72577633,86.745,86.713,11.53229619]
[1771290488975,3.72577633,86.761,86.72,3.25129044]
[1771290489283,3.72577633,86.759,86.73,3.25129044]
[1771290490684,3.72577633,86.758,86.73,3.25129044]
[1771290492383,18.44,86.76,86.7,3.25129044]
[1771290492384,11.52644743,86.757,86.72,3.25129044]
[1771290492590,3.72577633,86.756,86.72,3.25129044]
[1771290493097,3.72577633,86.756,86.701,40.36862319]
[1771290493098,3.72577633,86.769,86.73,3.25129044]
[1771290493264,3.72577633,86.767,86.73,3.25129044]
[1771290493869,18.44,86.766,86.73,3.25129044]
[1771290494378,3.72577633,86.765,86.73,3.25129044]
[1771290495185,3.72577633,86.765,86.731,11.5299028]
[1771290495365,3.72577633,86.764,86.731,11.5299028]
[1771290496081,18.44,86.763,86.731,11.5299028]
[1771290496384,3.72577633,86.762,86.731,11.5299028]
[1771290499968,3.72577633,86.762,86.74,3.25257263]
[1771290500177,3.72577633,86.762,86.731,11.5299028]
[1771290502694,3.72577633,86.762,86.74,3.25257263]
[1771290504792,28.80707527,86.785,86.741,1.38579018]
[1771290504988,4.61729252,86.804,86.741,1.38579018]
[1771290504989,18.44,86.784,86.751,1.38579018]
[1771290505193,18.44,86.783,86.76,3.25257263]
[1771290506172,18.44,86.783,86.752,11.52711176]
[1771290506373,18.44,86.783,86.753,1.38181699]
[1771290506988,3.59205378,86.782,86.753,1.38181699]
[1771290508387,3.59205378,86.782,86.76,3.25257263]
[1771290508699,57.58667692,86.826,86.742,11.52844066]
[1771290508700,3.59205378,86.779,86.742,11.52844066]
[1771290508899,3.59205378,86.769,86.742,11.52844066]
[1771290509297,18.44,86.778,86.742,11.52844066]
[1771290509508,18.44,86.777,86.743,3.53140363]